[Event "45th FIDE Olympiad 2024"]
[Site "Budapest"]
[Date "2024.09.19"]
[Round "8.23"]
[White "Le, Tuan Minh"]
[Black "Tari, Aryan"]
[Result "1-0"]
[ECO "D78"]
[WhiteElo "2564"]
[BlackElo "2642"]
[Annotator "TA"]
[PlyCount "81"]
[EventDate "2024.09.05"]
[EventType "team-tourn"]
[EventCountry "HUN"]
[SourceTitle "playchess.com"]
[Source "ChessBase"]
[SourceQuality "1"]
[WhiteTeam "Vietnam"]
[BlackTeam "Norway"]
[WhiteTeamCountry "VIE"]
[BlackTeamCountry "NOR"]
[TimeControl "40/5400+30:1800+30"]

{[%evp 16,81,19,11,3,0,8,0,0,0,0,2,14,0,34,33,19,0,39,0,21,28,47,26,118,119,109,111,94,80,80,90,89,86,138,137,144,122,126,128,136,104,116,117,117,122,178,191,175,171,173,183,180,174,289,222,404,411,380,404,672,640,658,641,688,688,688,673]} 1. d4 {[%emt 0:00:04]} Nf6 {[%emt 0:00:06]} 2. c4 {[%emt 0:00:08]} g6 {[%emt 0:00:05]} 3. Nf3 {[%emt 0:00:04]} Bg7 {[%emt 0:00:04]} 4. g3 {[%emt 0:00:03]} c6 {[%emt 0:00:11]} 5. Bg2 {[%emt 0:00:05]} d5 {[%emt 0:00:08]} 6. Nbd2 {[%emt 0:00:35]} O-O {[%emt 0:02:52]} 7. O-O {[%emt 0:00:09]} Bf5 {[%emt 0:02:49]} 8. b3 {[%emt 0:00:53]} a5 {[%emt 0:00:06]} 9. Bb2 {[%emt 0:00:20]} a4 {[%emt 0:03:32]} 10. e3 {[%emt 0:01:08]} Qa5 {[%emt 0:04:10]} 11. Ba3 {[%emt 0:16:52]} Re8 {[%emt 0:05:45] The position is equal.} 12. Qe2 {[%emt 0:03:01]} Ne4 {[%emt 0:18:23]} 13. Nxe4 {[%emt 0:08:39]} Bxe4 {[%emt 0:00:29]} 14. Rfc1 {[%emt 0:02:50]} dxc4 {[%emt 0:12:39]} 15. bxc4 {[%emt 0:05:20]} Nd7 {[%emt 0:00:44]} 16. Bb2 {[%emt 0:16:35]} Rad8 {[%emt 0:10:16]} 17. Bc3 {[%emt 0:07:13]} Qc7 {[%emt 0:06:49]} 18. Qd1 {[%emt 0:09:33]} b5 {[%emt 0:07:04]} 19. Bf1 {[%emt 0:04:36]} Rb8 {[%emt 0:03:58] White now steadily converts the win.} (19... b4 $11 {keeps the balance.} 20. Ng5 (20. Bxb4 e5 $11) 20... Bf5 21. Bxb4 c5) 20. Ng5 $16 {[%emt 0:02:49] cxb5 is the strong threat.} Nf6 {[%emt 0:02:49]} 21. Nxe4 {[%emt 0:02:06]} Nxe4 {[%emt 0:00:06]} 22. cxb5 {[%emt 0:00:03]} cxb5 {[%emt 0:00:36]} 23. Bb4 {[%emt 0:00:04]} Qd8 {[%emt 0:04:00]} 24. Qf3 {[%emt 0:03:57]} Nd6 {[%emt 0:01:30]} ({Black should try} 24... f5) 25. Rab1 {[%emt 0:00:35] White has more active pieces.} Qd7 {[%emt 0:05:01]} 26. Qd5 {[%emt 0:03:09]} Bf8 {[%emt 0:01:43]} 27. Bxd6 {[%emt 0:01:39] This pair of bishops is nice.} b4 {[%emt 0:00:05] [#]} 28. Rc6 $1 {[%emt 0:07:53][%cal Of1h3] Strongly threatening Bh3!} exd6 {[%emt 0:00:25]} (28... Red8 29. Bb5) 29. Bb5 {[%emt 0:00:38][%cal Bf1b5,Bb5c4,Bc4d5][%mdl 32]} b3 {[%emt 0:03:20]} 30. axb3 {[%emt 0:02:18]} (30. Bxa4 {simplifies} bxa2 31. Qxa2 Rxb1+ 32. Qxb1 Ra8 33. Qc2) 30... a3 {[%emt 0:00:10]} (30... axb3 $16 {might work better.} 31. Rxb3 Red8) 31. Ra1 $18 {[%emt 0:00:59]} Qe6 {[%emt 0:01:57]} 32. Bc4 {[%emt 0:00:15]} Qxd5 {[%emt 0:00:50]} 33. Bxd5 {[%emt 0:00:01]} Rb5 {[%emt 0:00:14]} 34. e4 $36 {[%emt 0:00:38][%mdl 2048] Keeping Black busy.} Ra5 {[%emt 0:00:58]} (34... Bg7 {was worth a try.} 35. Rxa3 (35. Rxd6 Bxd4 36. Rxa3 Bc5 $18) 35... Bxd4) 35. Rc7 {[%emt 0:01:08]} Re7 {[%emt 0:00:15]} (35... Rb8 36. Bxf7+ (36. Rxf7 Rxd5 37. Rxf8+ Kxf8 $17) 36... Kh8) 36. Rc8 {[%emt 0:00:03]} Rea7 {[%emt 0:02:37] [#]} 37. Rb8 {[%emt 0:00:15] Inhibits Rb5.} a2 {[%emt 0:01:39]} (37... Kg7 $142 38. b4 Rxd5 39. exd5 Be7) 38. b4 {[%emt 0:00:10][%cal Bb3b4,Bb4b5,Bb5b6,Bb6b7][%mdl 32] White is clearly winning.} Ra4 {[%emt 0:00:25]} 39. b5 {[%emt 0:00:11]} Kg7 {[%emt 0:00:35]} 40. b6 {[%emt 0:00:12]} R7a5 {[%emt 0:00:32]} 41. b7 {[%emt 0:30:25] Weighted Error Value: White=0.09 (flawless) /Black=0.34.  Mistake:       	---       	Black=6      Inaccurate:     	White=1     	Black=2      OK:         	White=13    	Black=8      Best:        	White=1     	Black=2} 1-0

[Event "45th FIDE Olympiad 2024"]
[Site "Budapest"]
[Date "2024.09.19"]
[Round "8.23"]
[White "Napoleao, Lourenco"]
[Black "Bonne, Robin"]
[Result "1-0"]
[WhiteElo "1913"]
[BlackElo "1707"]
[PlyCount "65"]
[EventDate "2024.09.05"]
[EventType "team-tourn"]
[EventCountry "HUN"]
[WhiteTeam "Mozambique"]
[BlackTeam "Seychelles"]
[WhiteTeamCountry "MOZ"]
[BlackTeamCountry "SEY"]
[TimeControl "40/5400+30:1800+30"]

1. d4 d5 2. Nc3 Nf6 3. Bf4 c6 4. e3 g6 5. h4 Bg7 6. Bd3 Nh5 7. Bh2 a6 8. g4 Nf6 9. g5 Nfd7 10. Nf3 f6 11. Qe2 Nb6 12. O-O-O Bg4 13. gxf6 exf6 14. Bf4 N8d7 15. h5 g5 16. Rdg1 Bxf3 17. Qxf3 Qe7 18. h6 Bf8 19. Bc7 Rc8 20. Bg3 Rg8 21. e4 Kd8 22. exd5 g4 23. Qf5 Qf7 24. d6 Nd5 25. Nxd5 cxd5 26. Bf4 Rc6 27. Qxh7 Qxh7 28. Bxh7 Rh8 29. Bf5 Bxd6 30. Bxd6 Rxd6 31. Rxg4 Nf8 32. Rg7 Rb6 33. h7 1-0

[Event "45th FIDE Olympiad 2024"]
[Site "Budapest"]
[Date "2024.09.19"]
[Round "8.24"]
[White "Urkedal, Frode Olav Olsen"]
[Black "Tran, Tuan Minh"]
[Result "1/2-1/2"]
[ECO "B90"]
[WhiteElo "2546"]
[BlackElo "2434"]
[Annotator "TA"]
[PlyCount "130"]
[EventDate "2024.09.05"]
[EventType "team-tourn"]
[EventCountry "HUN"]
[SourceTitle "playchess.com"]
[Source "ChessBase"]
[SourceQuality "1"]
[WhiteTeam "Norway"]
[BlackTeam "Vietnam"]
[WhiteTeamCountry "NOR"]
[BlackTeamCountry "VIE"]
[TimeControl "40/5400+30:1800+30"]

{[%evp 25,130,41,36,20,56,44,33,42,62,44,64,52,55,22,52,42,33,41,38,-28,-13,-86,-87,-71,-38,-44,-40,-41,-31,-31,-24,-31,-24,-31,-32,-32,0,0,0,-22,0,0,0,-12,0,-76,0,0,0,0,10,0,0,0,17,14,12,8,17,-10,0,-1,-8,-6,-13,-32,-17,-6,-15,-30,0,0,0,-29,-22,-39,0,0,0,0,0,-17,0,0,0,-22,0,0,0,0,0,0,16,0,0,0,0,-13,-4,-19,0,0,0,0,0,0,0]} 1. e4 {[%emt 0:00:02]} c5 {[%emt 0:00:51]} 2. Nf3 {[%emt 0:00:06]} d6 {[%emt 0:00:50]} 3. d4 {[%emt 0:00:06]} cxd4 {[%emt 0:00:05]} 4. Nxd4 {[%emt 0:00:05]} Nf6 {[%emt 0:00:13]} 5. Nc3 {[%emt 0:00:05]} a6 {[%emt 0:00:25]} 6. Be3 {[%emt 0:00:26]} e5 {[%emt 0:08:00]} 7. Nb3 {[%emt 0:00:56]} Be7 {[%emt 0:02:57]} 8. f3 {[%emt 0:00:55]} Be6 {[%emt 0:01:35]} 9. Qd2 {[%emt 0:00:17]} O-O {[%emt 0:09:34]} 10. O-O-O {[%emt 0:03:08]} b5 {[%emt 0:00:56][%cal Bb7b5,Bb5b4][%mdl 32]} 11. g4 {[%emt 0:09:05][%cal Bg2g4,Bg4g5][%mdl 32]} b4 {[%emt 0:08:13]} 12. Nd5 {[%emt 0:00:23]} Bxd5 {[%emt 0:00:20]} 13. exd5 {[%emt 0:00:08]} a5 $1 {[%emt 0:00:02] [#] Black is weak on the light squares} 14. Nc5 {[%emt 0:09:38]} a4 {[%emt 0:27:39][%cal Ob4b3]} (14... dxc5 15. d6 Ne8 16. dxe7 Qxe7 17. Qf2 $18) (14... Nbd7 15. Na4) 15. g5 {[%emt 0:05:33]} Nfd7 {[%emt 0:03:12]} 16. Ne4 {[%emt 0:02:30] White is slightly better.} Qa5 {[%emt 0:00:57]} 17. h4 {[%emt 0:05:59]} Na6 {[%emt 0:01:47]} 18. Bh3 {[%emt 0:13:08]} Nac5 {[%emt 0:02:46]} 19. h5 {[%emt 0:04:37][%cal Og5g6]} (19. Kb1 {is interesting.} Rfb8 20. h5 b3 21. cxb3 axb3 22. a3) 19... Nxe4 {[%emt 0:13:48]} 20. fxe4 {[%emt 0:00:06]} Nc5 {[%emt 0:00:03]} 21. Qg2 {[%emt 0:08:47]} b3 {[%emt 0:00:44]} 22. cxb3 {[%emt 0:00:11]} (22. a3 $1 $14) 22... a3 $11 {[%emt 0:02:55]} (22... axb3 $6 23. a3 $16) 23. Bxc5 {[%emt 0:11:06]} (23. g6 $1 $11) 23... axb2+ {[%emt 0:01:56]} 24. Qxb2 {[%emt 0:00:07] [#] aiming for Be3.} Bxg5+ {[%emt 0:00:19]} (24... Qxc5+ 25. Kb1 $11) 25. Kb1 {[%emt 0:00:09]} Qxc5 {[%emt 0:00:04]} 26. Rd3 {[%emt 0:01:40][%cal Bd1d3,Bd3c3,Bc3c7][%mdl 32]} Rfb8 {[%emt 0:04:18][%cal Oa8a4]} 27. Rc3 {[%emt 0:00:47]} Qa7 {[%emt 0:02:25]} 28. Qc2 {[%emt 0:00:59]} Be3 {[%emt 0:01:32]} 29. Rc7 {[%emt 0:04:39]} Qa5 {[%emt 0:02:43]} 30. Rf1 {[%emt 0:01:58]} Bf4 {[%emt 0:00:19][%cal Ob8b3] Hoping for ...Rxb3+!} 31. Rc6 {[%emt 0:01:07] Active counter play!} Qb4 {[%emt 0:00:30]} 32. Rc4 {[%emt 0:02:14]} Qb6 {[%emt 0:00:21]} 33. Rc6 {[%emt 0:03:33]} Qd8 {[%emt 0:01:38]} 34. Rc7 {[%emt 0:01:49][%cal Oh5h6]} Qh4 {[%emt 0:01:14]} 35. Bc8 {[%emt 0:03:11]} (35. Rh1 $1 $11 {remains equal.}) 35... g6 {[%emt 0:00:37]} ({Black should try} 35... Qxh5 $17 36. Bd7 Qh4) 36. hxg6 {[%emt 0:01:58]} (36. Qc6 $5 Qd8 $8 37. Bb7 $16) 36... hxg6 {[%emt 0:00:01]} 37. Qc6 {[%emt 0:02:19]} Qd8 {[%emt 0:00:29] Prevents Qe8+.} 38. Bb7 {[%emt 0:01:18]} Ra7 {[%emt 0:01:57]} 39. Rh1 {[%emt 0:01:01]} Kg7 {[%emt 0:00:47]} 40. Rd7 {[%emt 0:01:22]} Qf6 {[%emt 0:00:53]} 41. Qb6 {[%emt 0:05:47] Against Be3} Raa8 {[%emt 0:05:50][%cal Ob8h8]} 42. Qg1 {[%emt 0:13:31] Some like it hot} ({Much worse is} 42. Rxd6 Qe7 43. Rg1 (43. Bxa8 $2 Rxb6 44. Rxb6 Qa7 $19) 43... Bg5 $17 (43... Qxb7 44. Rdxg6+ fxg6 45. Qxg6+ Kf8 46. Qg8+ Ke7 47. Qe6+ Kd8 48. Rg8+ Kc7 49. Rg7+ Kd8 50. Qg8#)) (42. Rf1 {simplifies} Rd8 43. Qxd6 Qxd6 44. Rxd6 Rxd6 45. Bxa8 g5 46. Rg1) 42... Rd8 {[%emt 0:02:05]} 43. Bxa8 {[%emt 0:03:03]} Rxd7 {[%emt 0:00:04]} 44. Bc6 $132 {[%emt 0:00:22][%mdl 2048] White has counterplay} Rd8 {[%emt 0:00:47]} 45. Kc2 {[%emt 0:01:50]} Rb8 {[%emt 0:02:51]} 46. a3 {[%emt 0:00:24]} Bg5 {[%emt 0:02:13]} 47. Qf1 {[%emt 0:00:45] Prevents Qf3.} Qd8 {[%emt 0:01:22]} 48. b4 {[%emt 0:01:13] Against Qa5} Qb6 {[%emt 0:00:21]} 49. Qf3 {[%emt 0:03:31]} Qd4 {[%emt 0:02:16]} 50. Kb3 {[%emt 0:00:07] Dodges Qc4+} Be3 {[%emt 0:02:49]} 51. Rd1 {[%emt 0:00:41] Repels Qd3+. The position is equal.} Qa7 {[%emt 0:00:08]} 52. Rf1 {[%emt 0:01:26]} Bf4 {[%emt 0:00:21]} 53. Rh1 {[%emt 0:00:32]} Qb6 {[%emt 0:00:23]} 54. Qe2 {[%emt 0:02:15]} Qc5 {[%emt 0:02:45]} 55. Qf3 {[%emt 0:01:02]} Qa7 {[%emt 0:01:36]} 56. Qe2 {[%emt 0:00:22]} Be3 {[%emt 0:00:49]} 57. Re1 {[%emt 0:02:09]} Bg5 {[%emt 0:03:37]} 58. Rh1 {[%emt 0:00:09]} Rf8 {[%emt 0:00:20]} 59. Qf3 {[%emt 0:00:55]} Rb8 {[%emt 0:01:41]} 60. Qe2 {[%emt 0:00:14]} Qb6 {[%emt 0:01:46]} 61. Qf3 {[%emt 0:01:14]} Bd2 {[%emt 0:01:51][%cal Rd2b4] ...Bxb4! is the strong threat.} 62. Rf1 {[%emt 0:00:20]} Bf4 {[%emt 0:00:32]} (62... f5 $5 63. exf5 Bxb4 $15) 63. Rh1 {[%emt 0:00:14]} Qa7 {[%emt 0:02:15]} 64. Qe2 {[%emt 0:00:18]} Qd4 {[%emt 0:00:42]} 65. Rd1 {[%emt 0:00:12] Wards off Bd2} Qb6 {[%emt 0:00:48] Weighted Error Value: White=0.10 (very precise) /Black=0.10 (very precise) .  Mistake:       	White=3     	Black=1      Inaccurate:     	White=3     	Black=6      OK:         	White=23    	Black=23     Best:        	White=1     	Black=2} 1/2-1/2

[Event "45th FIDE Olympiad 2024"]
[Site "Budapest"]
[Date "2024.09.19"]
[Round "8.24"]
[White "Pillay, Ragul"]
[Black "Joao, Farisse"]
[Result "0-1"]
[WhiteElo "1633"]
[BlackElo "1851"]
[PlyCount "54"]
[EventDate "2024.09.05"]
[EventType "team-tourn"]
[EventCountry "HUN"]
[WhiteTeam "Seychelles"]
[BlackTeam "Mozambique"]
[WhiteTeamCountry "SEY"]
[BlackTeamCountry "MOZ"]
[TimeControl "40/5400+30:1800+30"]

1. e4 e5 2. Nc3 Nf6 3. Nf3 d6 4. Bc4 Be7 5. h3 Nc6 6. O-O O-O 7. d3 Na5 8. Bb3 Nxb3 9. cxb3 c5 10. Be3 h6 11. Rc1 Be6 12. Qe2 Nh7 13. Nd2 f5 14. f4 Qd7 15. fxe5 dxe5 16. Nc4 Bxc4 17. bxc4 f4 18. Bd2 Ng5 19. Nd5 f3 20. Qf2 fxg2 21. Qxg2 Nxh3+ 22. Kh2 Nf4 23. Nxf4 exf4 24. Bxf4 Rxf4 25. Rxf4 Bd6 26. Qg3 Qc7 27. Rcf1 g5 {0-} 0-1

[Event "45th FIDE Olympiad 2024"]
[Site "Budapest"]
[Date "2024.09.19"]
[Round "8.25"]
[White "Mchedlishvili, Mikheil"]
[Black "Giri, Anish"]
[Result "0-1"]
[ECO "A09"]
[WhiteElo "2574"]
[BlackElo "2724"]
[Annotator "TA"]
[PlyCount "116"]
[EventDate "2024.09.05"]
[EventType "team-tourn"]
[EventCountry "HUN"]
[SourceTitle "playchess.com"]
[Source "ChessBase"]
[SourceQuality "1"]
[WhiteTeam "Georgia"]
[BlackTeam "Netherlands"]
[WhiteTeamCountry "GEO"]
[BlackTeamCountry "NED"]
[TimeControl "40/5400+30:1800+30"]

{[%evp 35,116,-36,-29,-39,-28,-29,-20,-29,-11,-29,-2,-3,0,0,12,-68,-70,-91,-63,-92,-41,-37,-39,-39,-25,-53,-59,-191,-182,-171,-150,-175,-151,-146,-187,-190,-176,-185,-190,-192,-189,-196,-187,-207,-214,-216,-176,-221,-204,-176,-176,-176,-176,-247,-255,-247,-247,-240,-241,-270,-262,-270,-270,-296,-269,-288,-251,-260,0,-288,-246,-431,-426,-390,-372,-357,-308,-989,-1013,-966,-941,-1267,-1257]} 1. Nf3 {[%emt 0:00:05]} d5 {[%emt 0:00:05]} 2. c4 {[%emt 0:00:28]} d4 {[%emt 0:01:30]} 3. b4 {[%emt 0:00:54]} c5 {[%emt 0:00:22]} 4. Bb2 {[%emt 0:01:30]} Nf6 {[%emt 0:01:24]} 5. g3 {[%emt 0:04:04]} Qc7 {[%emt 0:02:54]} 6. Bg2 {[%emt 0:03:04] A09: Réti Opening: 1 Nf3 d5 2 c4.} e5 {[%emt 0:00:20]} 7. O-O {[%emt 0:03:16]} Nc6 {[%emt 0:01:31]} 8. b5 {[%emt 0:14:26]} Ne7 {[%emt 0:00:43]} 9. d3 {[%emt 0:03:19]} Ng6 {[%emt 0:02:30]} 10. e3 {[%emt 0:00:43]} Be7 {[%emt 0:00:35]} 11. Re1 $146 {[%emt 0:01:39]} ({Predecessor:} 11. Qe2 O-O 12. Nbd2 h6 13. a4 Bf5 14. a5 Rad8 15. Ra3 Rfe8 16. e4 Be6 17. Rb1 {½-½ Duda,J (2732)-Cheparinov,I (2663) FIDE World Cup 2023 (3.2)}) 11... O-O {[%emt 0:03:18]} 12. a4 {[%emt 0:00:35]} Bf5 {[%emt 0:10:44]} 13. a5 {[%emt 0:06:09]} Rad8 {[%emt 0:04:27]} 14. e4 {[%emt 0:02:09]} Bd7 {[%emt 0:00:29]} 15. Bc1 {[%emt 0:00:38]} a6 {[%emt 0:01:44]} 16. b6 {[%emt 0:06:53]} Qc8 {[%emt 0:00:20]} 17. Nbd2 {[%emt 0:01:34]} h6 {[%emt 0:00:56]} 18. Kh1 {[%emt 0:10:48]} Bh3 {[%emt 0:05:16]} 19. Ng1 {[%emt 0:01:55]} Bxg2+ {[%emt 0:00:18]} 20. Kxg2 {[%emt 0:00:02]} Qe6 {[%emt 0:02:21]} 21. Rf1 {[%emt 0:02:00]} Nd7 {[%emt 0:02:50]} 22. Qe2 {[%emt 0:00:53]} Bg5 {[%emt 0:01:02]} 23. Nh3 {[%emt 0:02:21]} Bxd2 {[%emt 0:00:50]} 24. Bxd2 {[%emt 0:00:06]} f5 {[%emt 0:06:39]} 25. f3 {[%emt 0:00:42]} ({White should play} 25. exf5 $1 $11 Rxf5 26. f3) 25... f4 $15 {[%emt 0:01:25]} 26. Be1 {[%emt 0:03:09]} Nf6 {[%emt 0:01:53]} 27. Nf2 {[%emt 0:06:41]} h5 {[%emt 0:05:51]} (27... Nh7 $17 {aiming for ...Ng5.} 28. Nh3 Rd7) 28. Bd2 $15 {[%emt 0:00:13]} Nh7 {[%emt 0:03:45]} 29. Rg1 {[%emt 0:02:13]} Rf6 {[%emt 0:05:04]} 30. Raf1 {[%emt 0:06:17]} Rdf8 {[%emt 0:01:38]} 31. g4 {[%emt 0:05:29]} (31. Kh1 $15) 31... Nh4+ $19 {[%emt 0:05:27]} 32. Kh1 {[%emt 0:00:07]} Rh6 {[%emt 0:06:07]} 33. Nh3 {[%emt 0:07:33] [#]} hxg4 $1 {[%emt 0:00:19]} 34. Rxg4 {[%emt 0:00:36]} Nf6 {[%emt 0:00:07]} 35. Ng5 {[%emt 0:00:44]} Qd7 {[%emt 0:00:06]} 36. Rgg1 {[%emt 0:00:16]} g6 {[%emt 0:00:10]} 37. Be1 {[%emt 0:01:32]} Kg7 {[%emt 0:00:06]} 38. Rf2 {[%emt 0:00:27]} Rfh8 {[%emt 0:00:19]} 39. Qf1 {[%emt 0:02:13]} Rh5 {[%emt 0:00:58]} 40. Rd2 {[%emt 0:00:48]} Kf8 {[%emt 0:02:46]} 41. Ra2 {[%emt 0:04:28]} Ke7 {[%emt 0:02:15]} 42. Rb2 {[%emt 0:01:03]} Qc8 {[%emt 0:03:52]} 43. Re2 {[%emt 0:02:12]} Qf8 {[%emt 0:03:29]} 44. Qh3 {[%emt 0:01:22]} (44. Bxh4 {is a better defense.} Rxh4 45. Rgg2) 44... Nf5 $19 {[%emt 0:01:49]} 45. Qxh5 {[%emt 0:00:31]} Ng3+ {[%emt 0:05:11]} (45... Nxh5 46. exf5 Qxf5 47. Ne4) 46. Bxg3 {[%emt 0:00:14]} Rxh5 {[%emt 0:02:32]} ({But not} 46... gxh5 47. Bh4 $17) 47. Be1 {[%emt 0:00:06]} Qc8 {[%emt 0:00:14]} 48. Ra2 {[%emt 0:03:31]} Kf8 {[%emt 0:02:18]} 49. Rb2 {[%emt 0:03:25]} Qd7 {[%emt 0:00:42]} 50. Ra2 {[%emt 0:00:15]} Ke7 {[%emt 0:07:50]} 51. Rgg2 {[%emt 0:03:15]} Kf8 {[%emt 0:08:07]} 52. Rg1 $1 {[%emt 0:00:09]} Kg7 {[%emt 0:01:01]} 53. Rag2 $2 {[%emt 0:06:42]} (53. Rgg2) 53... Ng8 $19 {[%emt 0:01:23]} 54. Rg4 {[%emt 0:02:13]} Nh6 {[%emt 0:01:02]} 55. R4g2 {[%emt 0:03:56]} Kf6 {[%emt 0:00:55]} 56. h4 $2 {[%emt 0:00:23]} (56. Ra2) 56... Nf7 $19 {[%emt 0:00:25]} 57. Rh2 {[%emt 0:05:35]} Nxg5 {[%emt 0:00:19]} 58. hxg5+ {[%emt 0:00:15]} Kg7 {[%emt 0:00:03]} (58... Rxg5 59. Bh4 Kf7 60. Bxg5 $18 (60. Rxg5 Qe6 $18)) 0-1

[Event "45th FIDE Olympiad 2024"]
[Site "Budapest"]
[Date "2024.09.19"]
[Round "8.25"]
[White "Gontcharov, Serguei"]
[Black "Wu, Li"]
[Result "0-1"]
[WhiteElo "1927"]
[BlackElo "2325"]
[PlyCount "102"]
[EventDate "2024.09.05"]
[EventType "team-tourn"]
[EventCountry "HUN"]
[WhiteTeam "Bermuda"]
[BlackTeam "Isle of Man"]
[WhiteTeamCountry "BER"]
[BlackTeamCountry "IOM"]
[TimeControl "40/5400+30:1800+30"]

1. e4 c5 2. Nf3 Nc6 3. d4 cxd4 4. Nxd4 Nf6 5. Nc3 e5 6. Ndb5 d6 7. Bg5 a6 8. Na3 b5 9. Nd5 Be7 10. Bxf6 Bxf6 11. c3 Rb8 12. Nc2 Bg5 13. a4 bxa4 14. Ncb4 Nxb4 15. cxb4 Bd7 16. Bxa6 O-O 17. O-O Qe8 18. Re1 Bd8 19. Qd2 Kh8 20. Rac1 f5 21. exf5 Rxf5 22. Bd3 Bg5 23. f4 Rxf4 24. Nxf4 Bxf4 25. Qxf4 exf4 26. Rxe8+ Bxe8 27. b5 g5 28. b6 Kg8 29. Rc7 Rxb6 30. Bxh7+ Kf8 31. Rc2 Bc6 32. Kf2 Kg7 33. Bf5 Kf6 34. Bg4 Be4 35. Rd2 d5 36. g3 Ke5 37. gxf4+ gxf4 38. Bd1 Rb4 39. h4 d4 40. Bf3 d3 41. h5 Rc4 42. Bd1 Kd4 43. b3 axb3 44. Bxb3 Rc5 45. Ra2 Rxh5 46. Ra4+ Kc3 47. Rxe4 Kxb3 48. Rxf4 d2 49. Ke2 Kc3 50. Rf1 Kc2 51. Ra1 Re5+ {0-} 0-1

[Event "45th FIDE Olympiad 2024"]
[Site "Budapest"]
[Date "2024.09.19"]
[Round "8.26"]
[White "Van Foreest, Jorden"]
[Black "Kacharava, Nikolozi"]
[Result "0-1"]
[ECO "D27"]
[WhiteElo "2696"]
[BlackElo "2511"]
[Annotator "TA"]
[PlyCount "60"]
[EventDate "2024.09.05"]
[EventType "team-tourn"]
[EventCountry "HUN"]
[SourceTitle "playchess.com"]
[Source "ChessBase"]
[SourceQuality "1"]
[WhiteTeam "Netherlands"]
[BlackTeam "Georgia"]
[WhiteTeamCountry "NED"]
[BlackTeamCountry "GEO"]
[TimeControl "40/5400+30:1800+30"]

{[%evp 11,60,30,32,15,32,16,8,2,15,16,47,37,58,72,78,52,60,54,65,42,64,48,62,45,119,107,110,90,105,92,128,-35,-43,-413,-400,-433,-444,-430,-430,-436,-454,-436,-462,-470,-452,-473,-465,-462,-426,-458,-446]} 1. d4 {[%emt 0:00:17]} d5 {[%emt 0:00:19]} 2. c4 {[%emt 0:01:00]} dxc4 {[%emt 0:00:39]} 3. Nf3 {[%emt 0:00:36]} Nf6 {[%emt 0:00:33]} 4. e3 {[%emt 0:00:07]} e6 {[%emt 0:00:28]} 5. Bxc4 {[%emt 0:00:10]} c5 {[%emt 0:00:29]} 6. O-O {[%emt 0:00:45]} a6 {[%emt 0:00:28]} 7. Re1 {[%emt 0:01:11]} Nc6 {[%emt 0:05:57]} 8. Nc3 {[%emt 0:00:58]} Be7 {[%emt 0:04:08]} 9. Bd3 {[%emt 0:00:10] The position is equal.} O-O {[%emt 0:02:50][%cal Rc5d4]} 10. dxc5 {[%emt 0:00:44]} Bxc5 {[%emt 0:00:58]} 11. a3 {[%emt 0:00:16]} b6 {[%emt 0:11:56][%cal Bb7b6,Bb6b5][%mdl 32]} 12. b4 {[%emt 0:01:49]} Be7 {[%emt 0:05:36]} 13. Bb2 {[%emt 0:01:14]} Bb7 {[%emt 0:01:37]} 14. Qe2 {[%emt 0:07:41]} b5 {[%emt 0:12:23]} 15. e4 {[%emt 0:10:04]} Nh5 {[%emt 0:14:50]} 16. g3 {[%emt 0:01:48] Repels Nf4} g6 {[%emt 0:00:51]} 17. Qe3 {[%emt 0:06:43]} f6 {[%emt 0:07:59]} ({Black should play} 17... Qb8 $14) 18. Bc2 {[%emt 0:02:01]} Bd6 {[%emt 0:03:23]} 19. Bb3 {[%emt 0:00:11]} Qe7 {[%emt 0:00:32]} 20. Ne2 {[%emt 0:00:04]} Ng7 {[%emt 0:07:36]} 21. e5 $2 {[%emt 0:09:24] [#]} ({Better is} 21. Nf4 $16) 21... fxe5 {[%emt 0:03:27] White must now prevent ...Bb8.} (21... Nxe5 {with more complications.} 22. Bxe5 fxe5 23. Nxe5 Rf5) 22. Nxe5 $2 {[%emt 0:00:11][%mdl 8192] Now White is beyond hope.} ({White should try} 22. Rad1 $15) 22... Nxe5 $19 {[%emt 0:00:53]} 23. Bxe5 {[%emt 0:00:15]} Rf3 {[%emt 0:00:53] Black is clearly winning.} 24. Qd4 {[%emt 0:11:50]} Bxe5 {[%emt 0:00:11]} 25. Qxe5 {[%emt 0:00:03]} Rxb3 {[%emt 0:00:07]} 26. Nd4 {[%emt 0:00:02]} Rd3 {[%emt 0:01:49]} 27. Rac1 {[%emt 0:00:03] [#] Rc7 is the strong threat.} Rd8 {[%emt 0:02:01]} (27... Rxa3 $2 {loses.} 28. Rc7 $18 (28. Nxe6 $2 {perishes.} Nxe6 29. Qxe6+ Qxe6 $19) (28. Nxe6 $2 Nxe6 29. Qxe6+ Qxe6 $19)) 28. Nc6 {[%emt 0:04:29]} Bxc6 {[%emt 0:00:19]} 29. Rxc6 {[%emt 0:00:03]} R3d6 {[%emt 0:00:57]} 30. Qc5 {[%emt 0:00:49]} Qf8 {[%emt 0:01:36] Weighted Error Value: White=0.45/Black=0.09 (flawless) .  Loses game:     	White=1     	---        Mistake:       	White=1     	Black=1      Inaccurate:     	White=1     	Black=1      OK:         	White=7     	Black=10     Best:        	---       	Black=2} 0-1